[Event "EYCC O18-ch 2024"]
[Site "Prague"]
[Date "2024.08.26"]
[Round "5.17"]
[White "Kutowski, Marcel"]
[Black "Davtyan, Arsen"]
[Result "1/2-1/2"]
[ECO "C93"]
[WhiteElo "2263"]
[BlackElo "2402"]
[Annotator "RC"]
[PlyCount "72"]
[EventDate "2024.08.19"]
[EventType "swiss"]
[EventCountry "CZE"]
[SourceTitle "playchess.com"]
[Source "ChessBase"]
[SourceQuality "1"]
[TimeControl "5400+30"]

1. e4 {[%emt 0:00:04]} e5 {[%emt 0:00:04]} 2. Nf3 {[%emt 0:00:06]} Nc6 {[%emt 0:00:06]} 3. Bb5 {[%emt 0:00:08]} a6 {[%emt 0:00:07]} 4. Ba4 {[%emt 0:00:07]} Nf6 {[%emt 0:00:05]} 5. O-O {[%emt 0:00:09]} Be7 {[%emt 0:00:05]} 6. Re1 {[%emt 0:00:06]} b5 {[%emt 0:00:06]} 7. Bb3 {[%emt 0:00:04]} d6 {[%emt 0:00:05]} 8. c3 {[%emt 0:00:19]} O-O {[%emt 0:00:07]} 9. h3 {[%emt 0:00:08]} h6 {[%emt 0:00:05]} 10. d4 {[%emt 0:01:40]} Re8 {[%emt 0:00:04]} 11. Nbd2 {[%emt 0:00:45]} Bd7 {[%emt 0:00:15]} 12. Nf1 {[%emt 0:00:28]} a5 {[%emt 0:01:19]} 13. d5 {[%emt 0:00:10]} Nb8 {[%emt 0:00:22]} 14. a4 {[%emt 0:00:05]} Na6 {[%emt 0:01:40]} 15. axb5 {[%emt 0:06:25]} Nc5 {[%emt 0:00:07]} 16. Bc2 {[%emt 0:05:08]} Bxb5 {[%emt 0:00:06]} 17. b3 {[%emt 0:07:41]} Bxf1 {[%emt 0:01:16]} 18. Kxf1 {[%emt 0:00:43]} c6 {[%emt 0:02:01]} 19. dxc6 {[%emt 0:05:20]} Qb6 {[%emt 0:01:17]} 20. Bd2 {[%emt 0:09:19]} Qxc6 {[%emt 0:02:29]} 21. Qe2 {[%emt 0:01:39]} Rec8 {[%emt 0:24:56]} 22. Nh4 {[%emt 0:10:01]} a4 {[%emt 0:14:49]} 23. Nf5 {[%emt 0:02:19]} Bf8 {[%emt 0:00:53]} 24. bxa4 {[%emt 0:05:08]} Nxa4 {[%emt 0:00:53]} 25. Qf3 {[%emt 0:01:35]} Nc5 {[%emt 0:33:05]} 26. Nxh6+ {[%emt 0:08:50]} gxh6 {[%emt 0:00:04]} 27. Qxf6 {[%emt 0:01:32]} Rxa1 {[%emt 0:06:19]} 28. Rxa1 {[%emt 0:00:16]} Nxe4 {[%emt 0:01:42]} 29. Bxe4 {[%emt 0:00:59]} Qxe4 {[%emt 0:00:02]} 30. Bxh6 {[%emt 0:01:03]} Bxh6 {[%emt 0:05:06]} 31. Qxh6 {[%emt 0:00:20]} Rxc3 {[%emt 0:02:22]} 32. Qxd6 {[%emt 0:03:17]} Qc4+ {[%emt 0:01:43]} 33. Kg1 {[%emt 0:01:50]} Rc1+ {[%emt 0:00:04]} 34. Rxc1 {[%emt 0:00:05]} Qxc1+ {[%emt 0:00:03]} 35. Kh2 {[%emt 0:00:08]} Qf4+ {[%emt 0:00:02]} 36. Kg1 {[%emt 0:00:07]} Qc1+ 1/2-1/2

[Event "EYCC O18-ch 2024"]
[Site "Prague"]
[Date "2024.08.26"]
[Round "5.18"]
[White "Belkaid, Sohan"]
[Black "Loftgaard, Mikkel Vinh"]
[Result "1/2-1/2"]
[ECO "B40"]
[WhiteElo "2384"]
[BlackElo "2227"]
[Annotator "RC"]
[PlyCount "91"]
[EventDate "2024.08.19"]
[EventType "swiss"]
[EventCountry "CZE"]
[SourceTitle "playchess.com"]
[Source "ChessBase"]
[SourceQuality "1"]
[TimeControl "5400+30"]

1. e4 {[%emt 0:00:07]} c5 {[%emt 0:00:00]} 2. Nf3 {[%emt 0:00:12]} e6 {[%emt 0:00:02]} 3. g3 {[%emt 0:00:19]} Nc6 {[%emt 0:00:13]} 4. Bg2 {[%emt 0:00:13]} Nf6 {[%emt 0:00:09]} 5. Qe2 {[%emt 0:00:24]} d6 {[%emt 0:00:12]} 6. O-O {[%emt 0:05:56]} Be7 {[%emt 0:02:24]} 7. d3 {[%emt 0:07:09]} O-O {[%emt 0:01:56]} 8. a4 {[%emt 0:02:54]} Rb8 {[%emt 0:03:42]} 9. Nc3 {[%emt 0:16:17]} a6 {[%emt 0:06:28]} 10. e5 {[%emt 0:02:37]} dxe5 {[%emt 0:00:49]} 11. Nxe5 {[%emt 0:00:20]} Nd4 {[%emt 0:00:58]} 12. Qd1 {[%emt 0:01:39]} b5 {[%emt 0:05:04]} 13. axb5 {[%emt 0:00:53]} axb5 {[%emt 0:01:04]} 14. Bf4 {[%emt 0:14:30]} Bb7 {[%emt 0:08:49]} 15. Ng4 {[%emt 0:08:17]} Bxg2 {[%emt 0:01:02]} 16. Nxf6+ {[%emt 0:06:38]} Bxf6 {[%emt 0:00:25]} 17. Kxg2 {[%emt 0:00:08]} Ra8 {[%emt 0:00:22]} 18. Rc1 {[%emt 0:07:10]} Be7 {[%emt 0:02:47]} 19. Be3 {[%emt 0:02:57]} b4 {[%emt 0:00:52]} 20. Ne4 {[%emt 0:04:28]} f5 {[%emt 0:04:08]} 21. Nd2 {[%emt 0:01:23]} Qd5+ {[%emt 0:01:43]} 22. f3 {[%emt 0:01:56]} e5 {[%emt 0:02:47]} 23. Nc4 {[%emt 0:02:57]} Ra6 {[%emt 0:02:25]} 24. Bxd4 {[%emt 0:03:50]} cxd4 {[%emt 0:00:13]} 25. Qe2 {[%emt 0:00:14]} Re6 {[%emt 0:00:18]} 26. Kg1 {[%emt 0:00:49]} Re8 {[%emt 0:04:49]} 27. b3 {[%emt 0:02:32]} e4 {[%emt 0:01:13]} 28. fxe4 {[%emt 0:00:38]} fxe4 {[%emt 0:00:02]} 29. dxe4 {[%emt 0:02:06]} Rxe4 {[%emt 0:01:09]} 30. Qf3 {[%emt 0:00:10]} Bc5 {[%emt 0:03:40]} 31. Kh1 {[%emt 0:00:34]} Qe6 {[%emt 0:00:33]} 32. Qf5 {[%emt 0:00:53]} Re2 {[%emt 0:01:32]} 33. Qxe6+ {[%emt 0:00:34]} R8xe6 {[%emt 0:00:09]} 34. Rf5 {[%emt 0:00:52]} Be7 {[%emt 0:00:21]} 35. Kg1 {[%emt 0:01:10]} h6 {[%emt 0:01:26]} 36. Rf2 {[%emt 0:01:11]} Bc5 {[%emt 0:01:23]} 37. Rxe2 {[%emt 0:00:53]} Rxe2 {[%emt 0:00:15]} 38. Kh1 {[%emt 0:00:15]} Kf7 {[%emt 0:01:02]} 39. Nb2 {[%emt 0:00:34]} Kg6 {[%emt 0:02:11]} 40. Nd3 {[%emt 0:00:06]} Bd6 {[%emt 0:00:02]} 41. Re1 {[%emt 0:01:22]} Rxe1+ {[%emt 0:00:16]} 42. Nxe1 {[%emt 0:00:05]} Kf5 {[%emt 0:00:11]} 43. Kg2 {[%emt 0:00:21]} Ke4 {[%emt 0:00:10]} 44. Kf2 {[%emt 0:00:40]} h5 {[%emt 0:00:29]} 45. Nd3 {[%emt 0:00:44]} g5 {[%emt 0:00:23]} 46. Ke2 {[%emt 0:00:48]} 1/2-1/2

[Event "EYCC O18-ch 2024"]
[Site "Prague"]
[Date "2024.08.28"]
[Round "6.1"]
[White "Davtyan, Arsen"]
[Black "Fishchuk, Vladyslav"]
[Result "1-0"]
[ECO "B31"]
[WhiteElo "2402"]
[BlackElo "2264"]
[Annotator "RC"]
[PlyCount "69"]
[EventDate "2024.08.19"]
[EventType "swiss"]
[EventCountry "CZE"]
[SourceTitle "playchess.com"]
[Source "ChessBase"]
[SourceQuality "1"]
[TimeControl "5400+30"]

1. e4 {[%emt 0:00:03]} c5 {[%emt 0:00:07]} 2. Nf3 {[%emt 0:00:05]} Nc6 {[%emt 0:00:05]} 3. Bb5 {[%emt 0:00:05]} g6 {[%emt 0:00:05]} 4. Bxc6 {[%emt 0:00:04]} bxc6 {[%emt 0:00:04]} 5. O-O {[%emt 0:00:11]} Bg7 {[%emt 0:00:07]} 6. Re1 {[%emt 0:00:07]} Qc7 {[%emt 0:00:08]} 7. h3 {[%emt 0:00:07]} d6 {[%emt 0:01:39]} 8. Na3 {[%emt 0:00:11]} e5 {[%emt 0:01:28]} 9. c3 {[%emt 0:00:38]} Ne7 {[%emt 0:12:50]} 10. d4 {[%emt 0:00:07]} cxd4 {[%emt 0:00:38]} 11. cxd4 {[%emt 0:00:04]} exd4 {[%emt 0:01:48]} 12. Bf4 {[%emt 0:00:06]} O-O {[%emt 0:00:51]} 13. Rc1 {[%emt 0:05:42]} Rd8 {[%emt 0:04:59]} 14. b3 {[%emt 0:03:34]} Ba6 {[%emt 0:09:48]} 15. Nxd4 {[%emt 0:05:36]} Qa5 {[%emt 0:01:47]} 16. Nc4 {[%emt 0:02:47]} Bxc4 {[%emt 0:00:34]} 17. Rxc4 {[%emt 0:01:25]} c5 {[%emt 0:10:47]} 18. Nf3 {[%emt 0:08:55]} d5 {[%emt 0:04:21]} 19. exd5 {[%emt 0:04:14]} Nxd5 {[%emt 0:00:44]} 20. Qe2 {[%emt 0:22:58]} Qb5 {[%emt 0:03:20]} 21. Be5 {[%emt 0:07:04]} Re8 {[%emt 0:02:23]} 22. Qd2 {[%emt 0:05:04]} Rad8 {[%emt 0:03:22]} 23. Bxg7 {[%emt 0:01:19]} Rxe1+ {[%emt 0:00:08]} 24. Qxe1 {[%emt 0:02:46]} Kxg7 {[%emt 0:00:28]} 25. Qc1 {[%emt 0:13:29]} Nb4 {[%emt 0:02:37]} 26. Rh4 {[%emt 0:02:16]} h5 {[%emt 0:05:43]} 27. Rxh5 {[%emt 0:00:45]} Kg8 {[%emt 0:01:54]} 28. Rh4 {[%emt 0:01:49]} Qe2 {[%emt 0:01:25]} 29. Qc3 {[%emt 0:02:18]} Qd1+ {[%emt 0:01:06]} 30. Kh2 {[%emt 0:00:01]} Qd6+ {[%emt 0:00:15]} 31. g3 {[%emt 0:00:02]} f6 {[%emt 0:00:16]} 32. Qe3 {[%emt 0:02:36]} Qd3 {[%emt 0:01:35]} 33. Qe6+ {[%emt 0:00:18]} Kg7 {[%emt 0:00:09]} 34. Qe7+ {[%emt 0:00:08]} Kg8 {[%emt 0:00:09]} 35. Qxf6 {[%emt 0:00:05]} 1-0

[Event "EYCC O18-ch 2024"]
[Site "Prague"]
[Date "2024.08.28"]
[Round "6.1"]
[White "Pasztor, Balazs"]
[Black "Rozen, Eytan"]
[Result "1/2-1/2"]
[ECO "B92"]
[WhiteElo "2402"]
[BlackElo "2478"]
[Annotator "RC"]
[PlyCount "232"]
[EventDate "2024.08.19"]
[EventType "swiss"]
[EventCountry "CZE"]
[SourceTitle "playchess.com"]
[Source "ChessBase"]
[SourceQuality "1"]
[TimeControl "5400+30"]

1. e4 {[%emt 0:00:04]} c5 {[%emt 0:00:07]} 2. Nf3 {[%emt 0:00:24]} d6 {[%emt 0:00:04]} 3. d4 {[%emt 0:00:06]} cxd4 {[%emt 0:00:03]} 4. Nxd4 {[%emt 0:00:07]} Nf6 {[%emt 0:00:03]} 5. Nc3 {[%emt 0:00:10]} a6 {[%emt 0:00:04]} 6. Be2 {[%emt 0:00:06]} e5 {[%emt 0:00:28]} 7. Nb3 {[%emt 0:00:07]} Be7 {[%emt 0:00:12]} 8. Be3 {[%emt 0:00:08]} Be6 {[%emt 0:00:10]} 9. Nd5 {[%emt 0:00:07]} Nbd7 {[%emt 0:00:08]} 10. Qd3 {[%emt 0:00:11]} O-O {[%emt 0:00:22]} 11. O-O {[%emt 0:00:17]} Bxd5 {[%emt 0:00:23]} 12. exd5 {[%emt 0:00:08]} Rc8 {[%emt 0:00:22]} 13. c4 {[%emt 0:00:29]} a5 {[%emt 0:01:28]} 14. Rae1 {[%emt 0:00:32]} g6 {[%emt 0:02:24]} 15. Kh1 {[%emt 0:07:16]} h5 {[%emt 0:03:20]} 16. f4 {[%emt 0:16:44]} exf4 {[%emt 0:03:31]} 17. Bxf4 {[%emt 0:07:32]} Ne5 {[%emt 0:01:53]} 18. Qd4 {[%emt 0:07:18]} Nfd7 {[%emt 0:06:53]} 19. Nd2 {[%emt 0:13:31]} f5 {[%emt 0:09:44]} 20. Nf3 {[%emt 0:09:51]} Bf6 {[%emt 0:04:16]} 21. Qg1 {[%emt 0:03:18]} Nc5 {[%emt 0:12:12]} 22. Nd4 {[%emt 0:01:12]} Qd7 {[%emt 0:03:36]} 23. b3 {[%emt 0:01:52]} Rce8 {[%emt 0:04:23]} 24. Rd1 {[%emt 0:03:11]} Rf7 {[%emt 0:04:47]} 25. Bc1 {[%emt 0:06:16]} h4 {[%emt 0:09:43]} 26. Bf3 {[%emt 0:01:44]} Kh7 {[%emt 0:05:55]} 27. Ba3 {[%emt 0:02:08]} Rfe7 {[%emt 0:07:07]} 28. Bxc5 {[%emt 0:00:38]} dxc5 {[%emt 0:00:06]} 29. Ne6 {[%emt 0:00:14]} b6 {[%emt 0:00:35]} 30. g4 {[%emt 0:02:02]} hxg3 {[%emt 0:05:36]} 31. Qxg3 {[%emt 0:00:16]} Nxf3 {[%emt 0:02:49]} 32. Qxf3 {[%emt 0:00:43]} Rxe6 {[%emt 0:00:03]} 33. dxe6 {[%emt 0:00:09]} Qxe6 {[%emt 0:00:02]} 34. Rd2 {[%emt 0:02:42]} Bd4 {[%emt 0:01:25]} 35. Rg2 {[%emt 0:00:48]} Qe4 {[%emt 0:01:18]} 36. Qg3 {[%emt 0:00:48]} f4 {[%emt 0:03:12]} 37. Qh4+ {[%emt 0:03:36]} Kg7 {[%emt 0:00:22]} 38. h3 {[%emt 0:01:02]} Re6 {[%emt 0:05:43]} 39. Qg4 {[%emt 0:02:31]} Rf6 {[%emt 0:01:05]} 40. h4 {[%emt 0:00:58]} Be3 {[%emt 0:03:14]} 41. h5 {[%emt 0:01:29]} Rd6 {[%emt 0:00:43]} 42. Kh2 {[%emt 0:02:43]} a4 {[%emt 0:00:35]} 43. Rf3 {[%emt 0:01:39]} axb3 {[%emt 0:00:15]} 44. axb3 {[%emt 0:00:01]} Qe6 {[%emt 0:00:39]} 45. Qh4 {[%emt 0:02:09]} Qe4 {[%emt 0:00:32]} 46. Qg4 {[%emt 0:01:30]} Qe5 {[%emt 0:00:34]} 47. hxg6 {[%emt 0:00:50]} Rd8 {[%emt 0:00:09]} 48. Ra2 {[%emt 0:00:59]} Qc7 {[%emt 0:01:24]} 49. Qe6 {[%emt 0:00:51]} Rh8+ {[%emt 0:00:29]} 50. Kg2 {[%emt 0:01:10]} Rh6 {[%emt 0:00:11]} 51. Qf7+ {[%emt 0:00:26]} Qxf7 {[%emt 0:00:01]} 52. gxf7 {[%emt 0:00:06]} Rg6+ {[%emt 0:00:57]} 53. Kh3 {[%emt 0:00:35]} Kxf7 {[%emt 0:00:02]} 54. Ra6 {[%emt 0:00:45]} Ke7 {[%emt 0:01:08]} 55. Kh4 {[%emt 0:00:46]} Kd7 {[%emt 0:00:11]} 56. Kh5 {[%emt 0:00:19]} Rg3 {[%emt 0:00:50]} 57. Ra7+ {[%emt 0:00:45]} Ke6 {[%emt 0:00:27]} 58. Rf1 {[%emt 0:00:27]} Kf5 {[%emt 0:00:39]} 59. Rf7+ {[%emt 0:00:36]} Ke4 {[%emt 0:00:06]} 60. Rf6 {[%emt 0:00:32]} Kd3 {[%emt 0:00:52]} 61. Rxb6 {[%emt 0:00:15]} Ke2 {[%emt 0:00:23]} 62. Ra1 {[%emt 0:00:21]} f3 {[%emt 0:00:43]} 63. b4 {[%emt 0:00:31]} f2 {[%emt 0:00:28]} 64. bxc5 {[%emt 0:00:09]} Rg5+ {[%emt 0:00:27]} 65. Kh4 {[%emt 0:00:06]} Rxc5 {[%emt 0:00:11]} 66. Rb2+ {[%emt 0:01:15]} Kf3 {[%emt 0:00:15]} 67. Rb7 {[%emt 0:00:49]} Rxc4+ {[%emt 0:01:08]} 68. Kh3 {[%emt 0:00:16]} Rf4 {[%emt 0:00:23]} 69. Rg7 {[%emt 0:00:48]} Ke2 {[%emt 0:00:33]} 70. Kg2 {[%emt 0:00:35]} f1=Q+ {[%emt 0:00:09]} 71. Rxf1 {[%emt 0:00:03]} Rxf1 {[%emt 0:00:05]} 72. Rg4 {[%emt 0:00:40]} Bf4 {[%emt 0:00:09]} 73. Rg6 {[%emt 0:00:43]} Rf2+ {[%emt 0:00:53]} 74. Kh3 {[%emt 0:00:06]} Kf3 {[%emt 0:00:07]} 75. Rg3+ {[%emt 0:00:03]} Ke4 {[%emt 0:00:01]} 76. Rg2 {[%emt 0:00:38]} Rf1 {[%emt 0:00:08]} 77. Rg6 {[%emt 0:01:09]} Kf5 {[%emt 0:00:48]} 78. Kg2 {[%emt 0:00:08]} Ra1 {[%emt 0:00:05]} 79. Rg8 {[%emt 0:00:28]} Bg5 {[%emt 0:00:34]} 80. Kf3 {[%emt 0:00:17]} Ra3+ {[%emt 0:00:06]} 81. Ke2 {[%emt 0:00:11]} Re3+ {[%emt 0:00:11]} 82. Kd1 {[%emt 0:00:29]} Rc3 {[%emt 0:00:01]} 83. Ke2 {[%emt 0:00:14]} Bf4 {[%emt 0:00:08]} 84. Rf8+ {[%emt 0:00:30]} Ke4 {[%emt 0:00:02]} 85. Re8+ {[%emt 0:00:06]} Be5 {[%emt 0:00:01]} 86. Re7 {[%emt 0:00:18]} Rc2+ {[%emt 0:00:01]} 87. Ke1 {[%emt 0:00:09]} Kd4 {[%emt 0:00:10]} 88. Kf1 {[%emt 0:00:06]} Bf4 {[%emt 0:00:10]} 89. Re2 {[%emt 0:00:28]} Rc8 {[%emt 0:00:30]} 90. Re7 {[%emt 0:00:42]} Be3 {[%emt 0:01:00]} 91. Ke2 {[%emt 0:00:13]} Rc2+ {[%emt 0:00:05]} 92. Kf3 {[%emt 0:00:08]} Rf2+ {[%emt 0:00:01]} 93. Kg4 {[%emt 0:00:10]} Rf8 {[%emt 0:00:12]} 94. Rd7+ {[%emt 0:00:17]} Ke4 {[%emt 0:00:02]} 95. Re7+ {[%emt 0:00:09]} Kd3 {[%emt 0:00:01]} 96. Re6 {[%emt 0:00:28]} Rf7 {[%emt 0:00:36]} 97. Rd6+ {[%emt 0:00:54]} Bd4 {[%emt 0:00:03]} 98. Ra6 {[%emt 0:00:08]} Ke4 {[%emt 0:00:07]} 99. Ra4 {[%emt 0:00:04]} Rg7+ {[%emt 0:00:10]} 100. Kh4 {[%emt 0:00:06]} Ke5 {[%emt 0:00:36]} 101. Kh3 {[%emt 0:00:03]} Be3 {[%emt 0:00:38]} 102. Rg4 {[%emt 0:00:13]} Ra7 {[%emt 0:00:02]} 103. Rb4 {[%emt 0:01:20]} Bf4 {[%emt 0:00:17]} 104. Kg4 {[%emt 0:00:20]} Rg7+ {[%emt 0:00:01]} 105. Kf3 {[%emt 0:00:08]} Rg3+ {[%emt 0:00:03]} 106. Ke2 {[%emt 0:00:07]} Ra3 {[%emt 0:00:02]} 107. Rb5+ {[%emt 0:00:24]} Ke4 {[%emt 0:00:07]} 108. Rb4+ {[%emt 0:00:04]} Kf5 {[%emt 0:00:02]} 109. Rb5+ {[%emt 0:00:35]} Kg4 {[%emt 0:00:01]} 110. Rd5 {[%emt 0:00:34]} Rc3 {[%emt 0:00:24]} 111. Rd4 {[%emt 0:00:54]} Kf5 {[%emt 0:00:33]} 112. Rd8 {[%emt 0:00:15]} Re3+ {[%emt 0:00:23]} 113. Kd1 {[%emt 0:00:10]} Ke4 {[%emt 0:00:07]} 114. Kc2 {[%emt 0:00:15]} Re2+ {[%emt 0:00:15]} 115. Kb3 {[%emt 0:00:21]} Rd2 {[%emt 0:00:06]} 116. Rxd2 {[%emt 0:00:06]} Bxd2 {[%emt 0:00:30]} 1/2-1/2

[Event "EYCC O18-ch 2024"]
[Site "Prague"]
[Date "2024.08.28"]
[Round "6.2"]
[White "Piliposyan, Robert"]
[Black "Sokolovsky, Yahli"]
[Result "1/2-1/2"]
[ECO "D35"]
[WhiteElo "2376"]
[BlackElo "2522"]
[Annotator "TA"]
[PlyCount "58"]
[EventDate "2024.08.19"]
[EventType "swiss"]
[EventCountry "CZE"]
[SourceTitle "playchess.com"]
[Source "ChessBase"]
[SourceQuality "1"]
[TimeControl "5400+30"]

{[%evp 16,58,28,22,45,58,64,4,5,0,0,0,0,0,0,0,0,0,0,0,0,-14,0,0,0,0,0,0,0,0,0,0,0,0,8,-12,-16,-16,0,0,0,0,0,0,0]} 1. d4 {[%emt 0:00:04]} d5 {[%emt 0:00:06]} 2. c4 {[%emt 0:00:04]} e6 {[%emt 0:00:04]} 3. Nc3 {[%emt 0:00:05]} Nf6 {[%emt 0:00:05]} 4. cxd5 {[%emt 0:00:04]} exd5 {[%emt 0:00:06]} 5. Bg5 {[%emt 0:00:04]} Be7 {[%emt 0:00:25]} 6. e3 {[%emt 0:00:05]} c6 {[%emt 0:00:20]} 7. Bd3 {[%emt 0:00:06]} O-O {[%emt 0:00:12]} 8. Qc2 {[%emt 0:02:59]} h6 {[%emt 0:00:33]} 9. Bh4 {[%emt 0:00:50]} c5 {[%emt 0:02:46]} 10. dxc5 {[%emt 0:12:20]} Nc6 {[%emt 0:02:59] [#] aiming for ...Nb4.} 11. Nf3 {[%emt 0:02:31] White is more active.} (11. Rd1 $14) 11... d4 $1 $11 {[%emt 0:02:03] White must now prevent ...Nb4. The position is equal.} 12. Nxd4 {[%emt 0:04:01]} (12. Rd1 {is interesting.} g5 13. Bc4 d3 14. Bxd3 Nb4 15. Qb1) 12... Nxd4 {[%emt 0:00:09]} 13. exd4 {[%emt 0:00:05]} Qxd4 {[%emt 0:00:17]} 14. Bxf6 {[%emt 0:01:11]} Bxf6 {[%emt 0:01:24]} 15. O-O {[%emt 0:00:38]} Qxc5 {[%emt 0:18:37]} 16. Ne4 {[%emt 0:00:14]} Qb6 {[%emt 0:00:31]} 17. Nxf6+ {[%emt 0:00:28]} Qxf6 {[%emt 0:00:02]} 18. Bh7+ {[%emt 0:09:59]} Kh8 {[%emt 0:00:02] [#] Hoping for ...g6.} 19. Be4 {[%emt 0:00:06]} Qb6 {[%emt 0:15:14]} 20. Bd5 {[%emt 0:04:24]} Be6 {[%emt 0:04:15]} 21. Bxe6 {[%emt 0:00:22]} Qxe6 {[%emt 0:00:07]} 22. Rfe1 {[%emt 0:00:05]} Rac8 {[%emt 0:01:39]} 23. Qa4 {[%emt 0:08:49]} Qb6 {[%emt 0:01:11]} 24. Re2 {[%emt 0:04:28]} f5 {[%emt 0:08:15]} 25. Qb3 {[%emt 0:13:53]} Qxb3 {[%emt 0:03:38]} 26. axb3 {[%emt 0:00:11][%cal Oe2e7]} Rfe8 {[%emt 0:11:09]} 27. Rxe8+ {[%emt 0:05:41]} Rxe8 {[%emt 0:00:02]} 28. Kf1 {[%emt 0:00:07] Prevents Re2.} (28. Rxa7 $2 Re1#) 28... a6 {[%emt 0:00:09]} 29. Ra5 {[%emt 0:00:10]} Rc8 {[%emt 0:08:51] Weighted Error Value: White=0.07 (flawless) /Black=0.03 (flawless) .  Mistake:       	White=1     	---        OK:         	White=13    	Black=7      Strong:       	---       	Black=1} 1/2-1/2

[Event "EYCC O18-ch 2024"]
[Site "Prague"]
[Date "2024.08.28"]
[Round "6.2"]
[White "Kutowski, Marcel"]
[Black "Belkaid, Sohan"]
[Result "0-1"]
[ECO "B90"]
[WhiteElo "2263"]
[BlackElo "2384"]
[Annotator "RC"]
[PlyCount "88"]
[EventDate "2024.08.19"]
[EventType "swiss"]
[EventCountry "CZE"]
[SourceTitle "playchess.com"]
[Source "ChessBase"]
[SourceQuality "1"]
[TimeControl "5400+30"]

1. e4 {[%emt 0:00:03]} c5 {[%emt 0:00:15]} 2. Nf3 {[%emt 0:00:04]} d6 {[%emt 0:00:10]} 3. d4 {[%emt 0:00:04]} cxd4 {[%emt 0:00:07]} 4. Nxd4 {[%emt 0:00:03]} Nf6 {[%emt 0:00:07]} 5. Nc3 {[%emt 0:00:05]} a6 {[%emt 0:00:07]} 6. Bd3 {[%emt 0:00:05]} e5 {[%emt 0:04:32]} 7. Nde2 {[%emt 0:01:06]} Be7 {[%emt 0:00:09]} 8. O-O {[%emt 0:00:17]} O-O {[%emt 0:00:12]} 9. Ng3 {[%emt 0:00:11]} Be6 {[%emt 0:00:22]} 10. Nd5 {[%emt 0:00:13]} Bxd5 {[%emt 0:00:22]} 11. exd5 {[%emt 0:00:04]} g6 {[%emt 0:00:21]} 12. c4 {[%emt 0:00:17]} Nbd7 {[%emt 0:00:30]} 13. Bh6 {[%emt 0:06:47]} Re8 {[%emt 0:00:13]} 14. b4 {[%emt 0:05:45]} a5 {[%emt 0:03:41]} 15. a3 {[%emt 0:02:14]} Bf8 {[%emt 0:00:28]} 16. Be3 {[%emt 0:02:30]} Qc7 {[%emt 0:21:04]} 17. Rc1 {[%emt 0:11:02]} axb4 {[%emt 0:05:00]} 18. axb4 {[%emt 0:00:24]} Ra3 {[%emt 0:01:41]} 19. c5 {[%emt 0:14:38]} dxc5 {[%emt 0:13:56]} 20. Bb5 {[%emt 0:17:47]} Rc8 {[%emt 0:11:35]} 21. Bxd7 {[%emt 0:10:03]} Qxd7 {[%emt 0:07:28]} 22. Qf3 {[%emt 0:02:47]} Ra6 {[%emt 0:08:14]} 23. Rfd1 {[%emt 0:06:09]} cxb4 {[%emt 0:03:53]} 24. Rxc8 {[%emt 0:00:25]} Qxc8 {[%emt 0:00:04]} 25. d6 {[%emt 0:00:16]} Qe6 {[%emt 0:04:12]} 26. Ne4 {[%emt 0:02:07]} Nd7 {[%emt 0:05:09]} 27. Bc5 {[%emt 0:04:52]} b3 {[%emt 0:00:54]} 28. Rb1 {[%emt 0:05:08]} Qf5 {[%emt 0:00:57]} 29. Be3 {[%emt 0:02:10]} b2 {[%emt 0:00:34]} 30. Nd2 {[%emt 0:00:51]} Qxf3 {[%emt 0:04:32]} 31. gxf3 {[%emt 0:00:06]} Ra1 {[%emt 0:00:08]} 32. Kg2 {[%emt 0:00:05]} Rxb1 {[%emt 0:00:07]} 33. Nxb1 {[%emt 0:00:03]} Bxd6 {[%emt 0:00:08]} 34. Kf1 {[%emt 0:00:04]} Bc5 {[%emt 0:00:41]} 35. Ke2 {[%emt 0:00:06]} Bxe3 {[%emt 0:03:19]} 36. fxe3 {[%emt 0:00:04]} b5 {[%emt 0:00:28]} 37. Kd2 {[%emt 0:00:11]} Nb6 {[%emt 0:00:14]} 38. Kc3 {[%emt 0:00:07]} Nd5+ {[%emt 0:00:16]} 39. Kd3 {[%emt 0:00:09]} b4 {[%emt 0:00:13]} 40. e4 {[%emt 0:00:14]} Nc3 {[%emt 0:00:07]} 41. Kc2 {[%emt 0:00:03]} Nxb1 {[%emt 0:00:12]} 42. Kxb1 {[%emt 0:00:04]} f5 {[%emt 0:00:41]} 43. Kxb2 {[%emt 0:00:13]} g5 {[%emt 0:00:38]} 44. Kb3 {[%emt 0:00:33]} g4 {[%emt 0:00:10]} 0-1